bitfinex/quotes_BTCUSD_20250829
["timestamp","ask_amount","ask_price","bid_price","bid_amount"]
[1756465099388,0.26006806,110230.0,110220.0,0.18145527]
[1756465099574,0.21676001,110230.0,110220.0,0.18145527]
[1756465101189,0.21038684,110230.0,110220.0,0.18145527]
[1756465101375,0.21676679,110230.0,110220.0,0.18145527]
[1756465101729,0.21676678,110230.0,110220.0,0.18145527]
[1756465102170,0.21972678,110230.0,110220.0,0.18145527]
[1756465102789,0.21676678,110230.0,110220.0,0.18145527]
[1756465105607,0.26055759,110230.0,110220.0,0.18145527]
[1756465107255,0.28784459,110230.0,110220.0,0.18145527]
[1756465107867,0.28784459,110230.0,110210.0,0.25127173]
[1756465107868,0.22520605,110230.0,110210.0,0.25127173]
[1756465108081,0.18145527,110220.0,110210.0,0.25437173]
[1756465108286,0.18145527,110220.0,110210.0,0.25647173]
[1756465108287,0.21332325,110220.0,110210.0,0.25647173]
[1756465110131,0.21530325,110220.0,110210.0,0.25437173]
[1756465110615,0.21530325,110220.0,110210.0,0.25747173]
[1756465110995,0.21332325,110220.0,110210.0,0.25747173]
[1756465111564,0.03186798,110220.0,110210.0,0.25747173]
[1756465111764,0.03186798,110220.0,110210.0,0.25647173]
[1756465112002,0.02549438,110220.0,110210.0,0.25647173]
[1756465112177,0.03188997,110220.0,110210.0,0.25647173]
[1756465112377,0.03288997,110220.0,110210.0,0.25647173]
[1756465112841,0.03288997,110220.0,110210.0,0.30522307]
[1756465113235,0.03289034,110220.0,110210.0,0.30522307]
[1756465113831,0.03289034,110220.0,110210.0,0.25647173]
[1756465116813,0.03189034,110220.0,110210.0,0.25647173]
[1756465119019,0.03189034,110220.0,110210.0,0.25747173]
[1756465119679,0.03189034,110220.0,110210.0,0.25647173]
[1756465120069,0.03189034,110220.0,110210.0,0.25747173]
[1756465120527,0.03189034,110220.0,110210.0,0.25647173]
[1756465120737,0.03189034,110220.0,110210.0,0.25847173]
[1756465121524,0.03189034,110220.0,110210.0,0.30742307]
[1756465121734,0.03189034,110220.0,110210.0,0.41665821]
[1756465121950,0.02551198,110220.0,110210.0,0.41665821]
[1756465122624,0.02551198,110220.0,110210.0,0.41765821]
[1756465123069,0.2233061,110240.0,110230.0,0.1814388]
[1756465123292,0.1814388,110230.0,110220.0,0.18145527]
[1756465123491,0.21534273,110230.0,110220.0,0.18455527]
[1756465123908,0.21534273,110230.0,110220.0,0.18145527]
[1756465124313,0.24262873,110230.0,110220.0,0.18145527]
[1756465124554,0.29440645,110230.0,110220.0,0.18145527]
[1756465125431,0.29440645,110230.0,110220.0,0.18455527]
[1756465126269,0.24262873,110230.0,110220.0,0.18555527]
[1756465126530,0.24064873,110230.0,110220.0,0.18765527]
[1756465126743,0.05921091,110230.0,110220.0,0.18765527]
[1756465128517,0.03192491,110230.0,110220.0,0.18765527]
[1756465130419,0.21534371,110230.0,110220.0,0.18245527]
[1756465130624,0.25791483,110230.0,110220.0,0.18245527]
[1756465130850,0.21534371,110230.0,110220.0,0.18245527]
[1756465131175,0.03390491,110230.0,110220.0,0.18245527]
[1756465131389,0.21534371,110230.0,110220.0,0.18538527]
[1756465131992,0.03390491,110230.0,110220.0,0.18745527]
[1756465133152,0.0339021,110230.0,110220.0,0.18745527]
[1756465133802,0.03389966,110230.0,110220.0,0.18745527]
[1756465134210,0.03389948,110230.0,110220.0,0.18745527]
[1756465134546,0.21533828,110230.0,110220.0,0.18245527]
[1756465135214,0.21533828,110230.0,110220.0,0.18538527]
[1756465135570,0.03191948,110230.0,110220.0,0.23202833]
[1756465136408,0.03191948,110230.0,110220.0,0.18745527]
[1756465140864,0.03192096,110230.0,110220.0,0.18745527]
[1756465142035,0.03390096,110230.0,110220.0,0.18745527]
[1756465142239,0.03192096,110230.0,110220.0,0.18745527]
[1756465143281,0.03192535,110230.0,110220.0,0.18745527]
[1756465143495,0.03192952,110230.0,110220.0,0.18745527]
[1756465143947,0.03192952,110230.0,110220.0,0.23496383]
[1756465144148,0.03192952,110230.0,110220.0,0.25590265]
[1756465144502,0.02554362,110230.0,110220.0,0.28318565]
[1756465144965,0.02554362,110230.0,110220.0,1.26571856]
[1756465145169,0.02554362,110230.0,110220.0,0.23567709]
[1756465147949,0.02754362,110230.0,110220.0,0.21266827]
[1756465148408,0.0339268,110230.0,110220.0,0.18538527]
[1756465148844,0.0339268,110230.0,110220.0,0.18745527]
[1756465149053,0.0319268,110230.0,110220.0,0.18745527]
[1756465152631,0.05330195,110230.0,110220.0,0.18745527]
[1756465153724,0.0319268,110230.0,110220.0,0.18745527]
[1756465153926,0.0339168,110230.0,110220.0,0.18245527]
[1756465154141,0.03390888,110230.0,110220.0,0.18245527]
[1756465154349,0.03390888,110230.0,110220.0,0.18745527]
[1756465155406,0.03390888,110230.0,110220.0,0.18538527]
[1756465155612,0.05548224,110230.0,110220.0,0.18538527]
[1756465156329,0.03390888,110230.0,110220.0,0.18745527]
[1756465156541,0.03191888,110230.0,110220.0,0.18745527]
[1756465156944,0.03191988,110230.0,110220.0,0.18745527]
[1756465158212,0.03191988,110230.0,110220.0,0.25725527]
[1756465161210,0.03192064,110230.0,110220.0,0.25725527]
[1756465164188,0.03192563,110230.0,110220.0,0.25725527]
[1756465164853,0.01489721,110230.0,110220.0,0.25725527]
[1756465165077,0.0382555,110230.0,110220.0,0.25739527]
[1756465165298,0.0319296,110230.0,110220.0,0.25739527]
[1756465168935,0.0319296,110230.0,110220.0,0.28468027]
[1756465172136,0.03192961,110230.0,110220.0,0.28468027]
[1756465172706,0.21534841,110230.0,110220.0,0.25225527]
[1756465172937,0.25519149,110230.0,110220.0,0.25225527]
[1756465173318,0.07375269,110230.0,110220.0,0.25225527]
[1756465173898,0.07375269,110230.0,110220.0,0.25529527]
[1756465174294,0.07375269,110230.0,110220.0,0.25739527]
[1756465175663,0.05033764,110230.0,110220.0,0.25739527]
[1756465175885,0.07375609,110230.0,110220.0,0.25739527]
[1756465176505,0.07177609,110230.0,110220.0,0.25739527]
[1756465176661,0.03193301,110230.0,110220.0,0.25739527]
[1756465179045,0.0167045,110240.0,110230.0,0.1814388]
[1756465179240,0.21972867,110240.0,110230.0,0.1814388]
[1756465179483,0.20302417,110240.0,110230.0,0.1814388]
[1756465179669,0.02160181,110240.0,110230.0,0.1844788]
[1756465179874,0.23236444,110250.0,110230.0,0.1865788]
[1756465180077,0.25212927,110250.0,110230.0,0.1865788]
[1756465180219,0.18142235,110240.0,110230.0,0.1835388]
[1756465180431,0.18242235,110240.0,110230.0,0.1835388]
[1756465180627,0.18242235,110240.0,110230.0,0.1865788]
[1756465181433,0.001,110240.0,110230.0,0.1865788]
[1756465182089,0.23350768,110250.0,110230.0,0.1865788]
[1756465182264,0.25313129,110250.0,110230.0,0.1865788]
[1756465182913,0.67598376,110250.0,110240.0,0.18446235]
[1756465183118,0.59411129,110250.0,110240.0,0.18446235]
[1756465183331,0.59411129,110250.0,110240.0,0.00304]
[1756465183486,0.59511129,110250.0,110230.0,0.1824388]
[1756465183692,0.18142235,110240.0,110230.0,0.1844788]
[1756465184136,0.18142235,110240.0,110230.0,0.1865788]
[1756465184311,0.25889535,110240.0,110230.0,0.00514]
[1756465184510,0.25889535,110240.0,110230.0,0.1814388]
[1756465184714,0.18340235,110240.0,110230.0,0.1835388]
[1756465184936,0.18142235,110240.0,110230.0,0.1865788]
[1756465186058,0.18142235,110240.0,110230.0,0.1875788]
[1756465186782,0.18340235,110240.0,110230.0,0.1875788]
[1756465188999,0.27861782,110240.0,110230.0,0.1875788]
[1756465189923,0.27861782,110240.0,110230.0,0.001]
[1756465190336,0.27861782,110240.0,110230.0,0.1824388]
[1756465190583,0.27861782,110240.0,110230.0,0.1814388]
[1756465190974,0.31055801,110240.0,110230.0,0.1814388]
[1756465191484,0.23496701,110240.0,110230.0,0.1814388]
[1756465192049,0.23496701,110240.0,110220.0,0.29072203]
[1756465192477,0.23496701,110240.0,110230.0,0.1814388]
[1756465192665,0.23596701,110240.0,110230.0,0.1814388]
[1756465192860,0.23496701,110240.0,110230.0,0.1845488]
[1756465193184,0.23596701,110240.0,110230.0,0.1845488]
[1756465193711,0.23496701,110240.0,110230.0,0.1845488]
[1756465193852,0.23596701,110240.0,110230.0,0.1845488]
[1756465194511,0.23596701,110240.0,110230.0,0.00518]
[1756465194721,0.31939226,110240.0,110230.0,0.00311]
[1756465194924,0.31939226,110240.0,110230.0,0.1845488]
[1756465195517,0.31939226,110240.0,110230.0,0.1833678]
[1756465196461,0.23596701,110240.0,110230.0,0.1814388]
[1756465197071,0.1814388,110230.0,110220.0,0.28761203]
[1756465197259,0.21535899,110230.0,110220.0,0.25125527]
[1756465197621,0.187827,110230.0,110220.0,0.25643527]
[1756465197754,0.21337981,110230.0,110220.0,0.25643527]
[1756465198237,0.03194106,110230.0,110220.0,0.25643527]
[1756465198820,0.03194106,110230.0,110220.0,0.25743527]
[1756465199440,0.21337986,110230.0,110220.0,0.25743527]
[1756465199815,0.03194106,110230.0,110220.0,0.25743527]
[1756465200400,0.2367362,110230.0,110220.0,0.0708]
[1756465200601,0.2367362,110230.0,110220.0,0.25743527]
[1756465200720,0.21539986,110230.0,110220.0,0.25743527]
[1756465200936,0.21337986,110230.0,110220.0,0.25743527]
[1756465201371,0.21337986,110230.0,110220.0,0.25643527]
[1756465201553,0.03194106,110230.0,110220.0,0.25643527]
[1756465202200,0.21337986,110230.0,110220.0,0.25643527]
[1756465202521,0.25658878,110230.0,110220.0,0.25643527]
[1756465202914,0.25860878,110230.0,110220.0,0.25743527]
[1756465203354,0.25658878,110230.0,110220.0,0.25743527]
[1756465203550,0.21437986,110230.0,110220.0,0.25743527]
[1756465203953,0.03294106,110230.0,110220.0,0.25743527]
[1756465204154,0.21437986,110230.0,110220.0,0.25743527]
[1756465207279,0.18882701,110230.0,110220.0,0.25743527]
[1756465207462,0.21437894,110230.0,110220.0,0.25743527]
[1756465209780,0.03294014,110230.0,110220.0,0.25743527]
[1756465210146,0.21437894,110230.0,110220.0,0.25743527]
[1756465210547,0.21639894,110230.0,110220.0,0.25743527]
[1756465211577,0.21639894,110230.0,110220.0,0.25643527]
[1756465211788,0.21539894,110230.0,110220.0,0.25643527]
[1756465211946,0.21337894,110230.0,110220.0,0.25643527]
[1756465212149,0.21437894,110230.0,110220.0,0.25643527]
[1756465212357,0.21337894,110230.0,110220.0,0.25643527]
[1756465212794,0.21437894,110230.0,110220.0,0.25643527]
[1756465213094,0.25870777,110230.0,110220.0,0.25643527]
[1756465213516,0.21639894,110230.0,110220.0,0.25643527]
[1756465213732,0.21539894,110230.0,110220.0,0.25643527]
[1756465215268,0.21639894,110230.0,110220.0,0.25643527]
[1756465215895,0.21639894,110230.0,110220.0,0.18663527]
[1756465216752,0.21437894,110230.0,110220.0,0.18663527]
[1756465218045,0.19734567,110230.0,110220.0,0.18663527]
[1756465218256,0.2143821,110230.0,110220.0,0.18663527]
[1756465220712,0.0329433,110230.0,110220.0,1.37243011]
[1756465221011,0.02655464,110230.0,110220.0,1.44306093]
[1756465221419,0.02655464,110230.0,110220.0,1.5705129]
[1756465221664,0.02555464,110230.0,110220.0,1.5987939]
[1756465222089,0.02555464,110230.0,110220.0,1.5977939]
[1756465222297,0.02555464,110230.0,110220.0,1.5987939]
[1756465223060,0.02555464,110230.0,110220.0,1.6007939]
[1756465223263,0.00851821,110230.0,110220.0,1.6007939]
[1756465223466,0.00851821,110230.0,110220.0,1.47223777]
[1756465223870,0.00851821,110230.0,110220.0,1.40160695]
[1756465224545,0.00851821,110230.0,110220.0,0.37266964]
[1756465226158,0.00851821,110230.0,110220.0,0.61336964]
[1756465226378,0.00851821,110230.0,110220.0,0.64036964]
[1756465226586,0.00801821,110230.0,110220.0,0.67147486]
[1756465226803,0.00054324,110250.0,110240.0,0.18142235]
[1756465227005,0.00054324,110250.0,110240.0,0.25122235]
[1756465227006,0.0239224,110250.0,110240.0,0.25122235]
[1756465227232,0.0239224,110250.0,110240.0,0.25641235]
[1756465227440,0.0239224,110250.0,110240.0,1.43836843]
[1756465227675,0.01754627,110250.0,110240.0,0.40943112]
[1756465227883,0.01754627,110250.0,110240.0,0.43670812]
[1756465228090,0.01754627,110250.0,110240.0,1.46564543]
[1756465228565,0.00154324,110250.0,110240.0,1.46564543]
[1756465229369,0.00054324,110250.0,110240.0,1.46564543]
[1756465229982,0.00054324,110250.0,110240.0,1.46664543]
[1756465231044,0.00054324,110250.0,110240.0,1.46564543]
[1756465231467,0.00054324,110250.0,110240.0,1.46964543]
[1756465232366,0.00054324,110250.0,110240.0,2.83858274]
[1756465234018,1e-08,110290.0,110280.0,0.54111379]
[1756465234216,1e-08,110290.0,110280.0,1.8003561]
[1756465234392,4.775e-05,110290.0,110280.0,1.8055461]
[1756465234596,4.775e-05,110290.0,110280.0,2.2055461]
[1756465234828,4.775e-05,110290.0,110280.0,2.2234461]
[1756465235396,4.775e-05,110290.0,110280.0,0.72226011]
[1756465235810,4.775e-05,110290.0,110280.0,0.72426011]
[1756465236214,0.00204775,110290.0,110280.0,0.72426011]
[1756465236444,0.00204775,110290.0,110280.0,1.75319742]
[1756465236848,0.0179,110310.0,110300.0,1.57119979]
[1756465237056,0.0179,110310.0,110300.0,1.74779243]
[1756465237258,0.01988,110310.0,110300.0,0.2957488]
[1756465237429,0.01988,110310.0,110300.0,0.2937288]
[1756465237651,0.01988,110310.0,110300.0,0.2957488]
[1756465237907,0.01988,110310.0,110300.0,0.2905588]
[1756465238272,0.02727107,110310.0,110300.0,0.18132366]
[1756465238671,0.06297631,110310.0,110300.0,0.18132366]
[1756465239004,0.06297631,110310.0,110300.0,0.18032366]
[1756465239231,0.06297631,110310.0,110300.0,0.18132366]
[1756465239615,0.06002301,110310.0,110300.0,0.18032366]
[1756465239818,0.05802301,110310.0,110300.0,0.18032366]
[1756465240068,0.05558301,110310.0,110300.0,0.18032366]
[1756465240222,0.05858301,110310.0,110300.0,0.18032366]
[1756465240426,0.05858301,110310.0,110300.0,0.17441949]
[1756465240627,0.05858301,110310.0,110300.0,1.21181334]
[1756465240831,0.05858301,110310.0,110300.0,1.29784312]
[1756465241245,0.02933701,110310.0,110300.0,1.29784312]
[1756465241452,0.02933701,110310.0,110300.0,1.2095468]
[1756465242326,0.02633233,110310.0,110300.0,1.2095468]
[1756465242755,0.02633233,110310.0,110300.0,1.2085468]
[1756465242987,0.02633233,110310.0,110300.0,1.31778194]
[1756465243175,0.02633233,110310.0,110300.0,1.40607826]
[1756465243882,0.02833233,110310.0,110300.0,1.40607826]
[1756465244102,0.02633233,110310.0,110300.0,1.40607826]
[1756465244523,0.02633233,110310.0,110300.0,1.31778194]
[1756465245545,0.02733233,110310.0,110300.0,1.31778194]
[1756465245977,0.02633233,110310.0,110300.0,1.31778194]
[1756465246180,0.02831233,110310.0,110300.0,1.32078194]
[1756465246427,0.02831233,110310.0,110300.0,1.31192698]
[1756465246632,0.02831233,110310.0,110300.0,1.30775698]
[1756465246863,0.02831233,110310.0,110300.0,0.27679967]
[1756465247077,0.04953668,110310.0,110300.0,0.18850335]
[1756465247293,0.02831233,110310.0,110300.0,1.21744066]
[1756465247523,0.02733233,110310.0,110300.0,1.22063066]
[1756465247901,0.02733233,110310.0,110300.0,1.22163066]
[1756465248340,0.02733233,110310.0,110300.0,1.29811978]
[1756465248544,0.02733233,110310.0,110300.0,1.3864161]
[1756465248969,0.02733233,110310.0,110300.0,1.29811978]
[1756465250174,0.01150371,110330.0,110320.0,0.18129079]
[1756465250387,0.2143423,110330.0,110320.0,0.18129079]
[1756465250628,0.02156352,110330.0,110320.0,0.18129079]
[1756465250851,0.03843967,110330.0,110320.0,0.18327079]
[1756465251065,0.01701936,110330.0,110320.0,1.2152081]
[1756465251361,0.01701936,110330.0,110320.0,1.30350442]
[1756465251603,0.01701936,110330.0,110320.0,1.2152081]
[1756465251818,0.01701936,110330.0,110320.0,0.18627079]
[1756465252294,0.01801936,110330.0,110320.0,0.18627079]
[1756465252917,0.01801936,110330.0,110320.0,1.2152081]
[1756465253194,0.02101936,110330.0,110320.0,1.2152081]
[1756465253325,0.01801936,110330.0,110320.0,1.2152081]
[1756465253531,0.01999936,110330.0,110320.0,0.18327079]
[1756465253793,0.25947623,110330.0,110320.0,0.18129079]
[1756465253944,0.27892823,110330.0,110320.0,0.18129079]
[1756465254152,0.03845136,110330.0,110320.0,0.16948417]
[1756465254347,0.21972571,110330.0,110320.0,0.16948417]
[1756465254962,0.22216571,110330.0,110320.0,0.16948417]
[1756465255183,0.22316571,110330.0,110320.0,0.16948417]
[1756465255380,0.22316571,110330.0,110320.0,0.1635809]
[1756465255580,0.30216896,110330.0,110320.0,0.1635809]
[1756465256178,0.30516896,110330.0,110320.0,0.18129079]
[1756465256356,0.30216896,110330.0,110320.0,0.17243582]
[1756465256563,0.30850982,110330.0,110320.0,0.17243582]
[1756465256863,0.31250982,110330.0,110320.0,0.17243582]
[1756465257060,0.23250657,110330.0,110320.0,0.17243582]
[1756465257546,0.23006657,110330.0,110320.0,0.17243582]
[1756465259335,0.25438056,110330.0,110320.0,0.17243582]
[1756465259537,0.25682056,110330.0,110320.0,0.18129079]
[1756465259733,0.25682056,110330.0,110310.0,0.25106722]
[1756465259942,0.34344729,110330.0,110310.0,0.25106722]
[1756465260113,0.37602717,110330.0,110310.0,0.25106722]
[1756465260312,0.37602717,110330.0,110310.0,0.23926016]
[1756465260511,0.18373079,110320.0,110310.0,0.06976]
[1756465260719,0.25071379,110320.0,110310.0,0.06976]
[1756465260922,0.28520858,110320.0,110310.0,0.06976]
[1756465261125,0.3085122,110320.0,110310.0,0.05500063]
[1756465261752,0.31677809,110320.0,110310.0,0.05500063]
[1756465261948,0.34404409,110320.0,110310.0,0.05500063]
[1756465262159,0.36898501,110320.0,110310.0,0.05500063]
[1756465263578,0.18130722,110310.0,110300.0,0.18132233]
[1756465263773,0.26505255,110310.0,110300.0,0.18132233]
[1756465263976,0.28841923,110310.0,110300.0,0.18132233]
[1756465265799,0.28841923,110310.0,110300.0,0.18132366]
[1756465266030,0.33745048,110310.0,110300.0,0.18132366]
[1756465266240,0.33745048,110310.0,110290.0,0.32194898]
[1756465266490,0.28941923,110310.0,110300.0,0.18132366]
[1756465266816,0.28941614,110310.0,110300.0,0.18132366]
[1756465267152,0.28841614,110310.0,110300.0,0.18132366]
[1756465267351,0.08591785,110310.0,110300.0,0.18132366]
[1756465267558,0.08591785,110310.0,110300.0,0.18630366]
[1756465267939,0.08393785,110310.0,110300.0,0.20724248]
[1756465268767,0.08591785,110310.0,110300.0,0.20226248]
[1756465268971,0.08393785,110310.0,110300.0,0.20724248]
[1756465269799,0.08393785,110310.0,110300.0,0.18630366]
[1756465270019,0.30381771,110310.0,110290.0,0.23946143]
[1756465270199,0.23842154,110300.0,110290.0,0.06972]
[1756465270447,0.26724151,110300.0,110290.0,0.24515533]
[1756465270652,0.08591785,110300.0,110290.0,0.25013533]
[1756465271073,0.08591692,110300.0,110290.0,0.25013533]
[1756465271452,0.26724058,110300.0,110290.0,0.24515533]
[1756465271698,0.32071375,110300.0,110290.0,0.24515533]
[1756465272225,0.16384116,110300.0,110290.0,0.24713533]
[1756465272431,0.16384116,110300.0,110290.0,0.25013533]
[1756465272632,0.11036799,110300.0,110290.0,0.25013533]
[1756465273083,0.11036495,110300.0,110290.0,0.25013533]
[1756465273449,0.11136495,110300.0,110290.0,0.25013533]
[1756465273652,0.29268861,110300.0,110290.0,0.24515533]
[1756465274053,0.29268861,110300.0,110290.0,0.24713533]
[1756465274248,0.31577387,110300.0,110290.0,0.25013533]
[1756465274655,0.13445021,110300.0,110290.0,0.25013533]
[1756465275650,0.13443634,110300.0,110290.0,0.25013533]
[1756465276275,0.31576,110300.0,110290.0,0.25013533]
[1756465276496,0.13443634,110300.0,110290.0,0.25013533]
[1756465276925,0.13245634,110300.0,110290.0,0.25013533]
[1756465277703,0.31378,110300.0,110290.0,0.25013533]
[1756465277922,0.31577,110300.0,110290.0,0.24515533]
[1756465278122,0.31577,110300.0,110290.0,0.25013533]
[1756465278352,0.29131047,110300.0,110290.0,0.25013533]
[1756465279681,0.10998681,110300.0,110290.0,0.25013533]
[1756465280021,0.2355925,110300.0,110290.0,0.25013533]
[1756465281720,0.2292251,110300.0,110290.0,0.25013533]
[1756465281882,0.23558862,110300.0,110290.0,0.25013533]
[1756465282321,0.23558962,110300.0,110290.0,0.25013533]
[1756465282729,0.05426596,110300.0,110290.0,0.25013533]
[1756465283044,0.23558962,110300.0,110290.0,0.25013533]
[1756465283239,0.05426596,110300.0,110290.0,0.25013533]
[1756465283828,0.08641055,110300.0,110290.0,0.25013533]
[1756465284039,0.26773421,110300.0,110290.0,0.25013533]
[1756465285845,0.26773421,110300.0,110290.0,0.06381523]
[1756465286065,0.1813401,110290.0,110270.0,0.35482127]
[1756465286283,0.27776649,110290.0,110270.0,0.33388245]
[1756465286479,0.27776649,110290.0,110280.0,0.18135654]
[1756465286693,0.27975649,110290.0,110280.0,0.18135654]
[1756465287422,0.28075649,110290.0,110280.0,0.18135654]
[1756465287659,0.28075649,110290.0,110270.0,0.33388245]
[1756465287919,0.18135654,110280.0,110270.0,0.25118073]
[1756465288087,0.2809858,110280.0,110270.0,0.06980774]
[1756465288304,0.28110605,110280.0,110270.0,0.25118073]
[1756465288708,0.28110605,110280.0,110270.0,0.25623073]
[1756465289872,0.27910605,110280.0,110270.0,0.25623073]
[1756465290067,0.28110605,110280.0,110270.0,0.25623073]
[1756465290235,0.2615338,110280.0,110270.0,0.25218073]
[1756465290463,0.2615338,110280.0,110270.0,0.25623073]
[1756465290988,0.2615338,110280.0,110270.0,0.25723073]
[1756465291595,0.2615338,110280.0,110270.0,0.25218073]
[1756465291792,0.28822596,110280.0,110270.0,0.25218073]
[1756465291994,0.28822596,110280.0,110270.0,0.25723073]
[1756465292381,0.28822596,110280.0,110270.0,0.07080774]
[1756465292584,0.28824973,110280.0,110270.0,0.07080774]
[1756465293044,0.30781736,110280.0,110270.0,0.07080774]
[1756465293250,0.28824973,110280.0,110270.0,0.07080774]
[1756465293474,0.30781528,110280.0,110270.0,0.07080774]
[1756465294636,0.64781528,110280.0,110270.0,0.00104774]
[1756465294848,0.65022528,110280.0,110270.0,0.00104774]
[1756465295905,0.64781528,110280.0,110270.0,0.00104774]
[1756465296026,0.64981528,110280.0,110270.0,4.774e-05]
[1756465296451,0.64881528,110280.0,110270.0,4.774e-05]
[1756465296714,0.64781528,110280.0,110270.0,4.774e-05]
[1756465296917,0.64981528,110280.0,110270.0,4.774e-05]
[1756465297126,0.65081528,110280.0,110270.0,4.774e-05]
[1756465300589,0.42110544,110280.0,110270.0,0.18647073]
[1756465300763,0.41910544,110280.0,110270.0,0.18647073]
[1756465300971,0.41810544,110280.0,110270.0,0.18647073]
[1756465301370,0.41910544,110280.0,110270.0,0.18647073]
[1756465302190,0.42010544,110280.0,110270.0,0.18647073]
[1756465302388,0.4913572,110280.0,110270.0,0.18647073]
[1756465302572,0.4903572,110280.0,110270.0,0.18647073]
[1756465303049,0.4913572,110280.0,110270.0,0.18647073]
[1756465303173,0.67271374,110280.0,110270.0,0.18647073]
[1756465303368,0.65784379,110280.0,110270.0,0.18647073]
[1756465303572,0.67269935,110280.0,110270.0,0.18647073]
[1756465304682,0.67269935,110280.0,110270.0,0.00509774]
[1756465304888,0.67467935,110280.0,110270.0,4.774e-05]
[1756465305232,0.67467935,110280.0,110270.0,0.18142073]
[1756465305871,0.67468006,110280.0,110270.0,0.18142073]
[1756465306273,0.67468006,110280.0,110270.0,0.18447073]
[1756465306911,0.67468006,110280.0,110270.0,0.00309774]
[1756465307093,0.67468006,110280.0,110270.0,4.774e-05]
[1756465307742,0.67712006,110280.0,110270.0,4.774e-05]
[1756465307965,0.67468006,110280.0,110270.0,4.774e-05]
[1756465308177,0.67468006,110280.0,110270.0,0.18142073]
[1756465308388,0.21717059,110280.0,110270.0,0.18142073]
[1756465308804,0.24017048,110280.0,110270.0,0.18142073]
[1756465309257,0.24017048,110280.0,110270.0,4.774e-05]
[1756465309437,0.0536455,110280.0,110270.0,4.774e-05]
[1756465309670,0.23500204,110280.0,110270.0,4.774e-05]
[1756465310922,0.284123,110280.0,110270.0,4.774e-05]
[1756465312198,0.624123,110280.0,110270.0,0.18142073]
[1756465312844,0.624123,110280.0,110270.0,4.774e-05]
[1756465313798,0.624123,110280.0,110270.0,0.18142073]
[1756465313997,0.626563,110280.0,110270.0,4.774e-05]
[1756465314258,0.60638628,110280.0,110270.0,4.774e-05]
[1756465314368,0.61277358,110280.0,110270.0,4.774e-05]
[1756465314984,0.64005058,110280.0,110270.0,4.774e-05]
[1756465315428,0.63761058,110280.0,110270.0,4.774e-05]
[1756465315636,0.58848962,110280.0,110270.0,0.18676073]
[1756465316067,0.58848962,110280.0,110270.0,0.00538774]
[1756465316269,0.56121262,110280.0,110270.0,0.18676073]
[1756465316465,0.37787608,110280.0,110270.0,0.18676073]
[1756465317121,0.55923262,110280.0,110270.0,0.18676073]
[1756465317294,0.64393206,110280.0,110270.0,0.18676073]
[1756465317492,0.64195206,110280.0,110270.0,0.18676073]
[1756465318150,0.64195206,110280.0,110270.0,0.18776073]
[1756465319935,0.55923262,110280.0,110270.0,0.18776073]
[1756465320516,0.37787608,110280.0,110270.0,0.18776073]
[1756465320714,0.01487619,110280.0,110270.0,0.25839155]
[1756465321026,0.01487619,110280.0,110270.0,0.27933037]
[1756465321232,0.01487619,110280.0,110270.0,1.30826768]
[1756465321430,0.03190127,110280.0,110270.0,1.30826768]
[1756465321663,0.03190127,110280.0,110270.0,1.396564]
[1756465322045,0.03190127,110280.0,110270.0,1.48486032]
[1756465322636,0.02552576,110280.0,110270.0,1.48486032]
[1756465323242,0.00850068,110280.0,110270.0,1.48486032]
[1756465324272,0.02390313,110300.0,110290.0,0.20227892]
[1756465324480,0.06825721,110300.0,110290.0,0.27203892]
[1756465324831,0.07023721,110300.0,110290.0,0.2511001]
[1756465325627,0.25156087,110300.0,110290.0,0.2511001]
[1756465326275,0.27510312,110300.0,110290.0,0.2511001]
[1756465326744,0.05738915,110300.0,110290.0,0.2511001]
[1756465326988,0.05738915,110300.0,110290.0,0.2564401]
[1756465327609,0.1813073,110310.0,110300.0,0.18132366]
[1756465327730,0.1832873,110310.0,110300.0,0.18132366]
[1756465327935,0.1857273,110310.0,110290.0,0.2543301]
[1756465328403,0.1857273,110310.0,110290.0,0.2511001]
[1756465328762,0.18132366,110300.0,110290.0,0.2511001]
[1756465328988,0.18330366,110300.0,110290.0,0.2511001]
[1756465329207,0.00198,110300.0,110290.0,0.2564401]
[1756465329773,0.18330366,110300.0,110290.0,0.2511001]
[1756465329967,0.18330366,110300.0,110290.0,0.06976]
[1756465329968,0.22010876,110300.0,110290.0,0.06976]
[1756465330197,0.1813401,110290.0,110280.0,0.19040956]
[1756465330400,0.00199,110290.0,110280.0,0.19251956]
[1756465330602,0.00199,110290.0,110280.0,0.19574956]
[1756465330843,0.21812876,110300.0,110290.0,0.1813401]
[1756465331046,0.24306376,110300.0,110290.0,0.1813401]
[1756465331369,0.20625866,110300.0,110290.0,0.1813401]
[1756465332427,0.20625866,110300.0,110280.0,0.19463956]
[1756465332631,0.20625866,110300.0,110290.0,0.1813401]
[1756465332838,0.20625866,110300.0,110290.0,0.1866801]
[1756465333044,0.20426866,110300.0,110290.0,0.1866801]
[1756465333454,0.20626866,110300.0,110290.0,0.1866801]
[1756465333658,0.20426866,110300.0,110290.0,0.1866801]
[1756465333860,0.20626866,110300.0,110290.0,0.1866801]
[1756465334079,0.1813401,110290.0,110270.0,0.33411019]
[1756465334338,0.18135654,110280.0,110270.0,0.33411019]
[1756465334606,0.18135654,110280.0,110270.0,0.33622019]
[1756465335016,0.18335654,110280.0,110270.0,0.33622019]
[1756465335631,0.2198262,110280.0,110270.0,0.33622019]
[1756465335915,0.2198262,110280.0,110270.0,0.26024937]
[1756465336114,0.2198262,110280.0,110270.0,0.26235937]
[1756465336342,0.2198262,110280.0,110270.0,0.26558937]
[1756465337147,0.2198262,110280.0,110270.0,0.06980774]
[1756465337486,0.5598262,110280.0,110270.0,4.774e-05]
[1756465337695,0.5632362,110280.0,110270.0,0.00104774]
[1756465337892,0.5632362,110280.0,110270.0,4.774e-05]
[1756465338107,0.5622362,110280.0,110270.0,4.774e-05]
[1756465338313,0.5598262,110280.0,110270.0,4.774e-05]
[1756465338553,0.5632362,110280.0,110270.0,4.774e-05]
[1756465338972,5.5632362,110280.0,110270.0,4.774e-05]
[1756465339189,5.58279607,110280.0,110270.0,4.774e-05]
[1756465339607,5.61463154,110280.0,110270.0,4.774e-05]
[1756465342680,5.63908261,110280.0,110270.0,4.774e-05]
[1756465343335,5.63808261,110280.0,110270.0,4.774e-05]
[1756465343544,5.66366015,110280.0,110270.0,4.774e-05]
[1756465343748,5.67066015,110280.0,110270.0,4.774e-05]
[1756465343954,5.69929286,110280.0,110270.0,4.774e-05]
[1756465344159,5.70029286,110280.0,110270.0,4.774e-05]
[1756465344354,5.66766015,110280.0,110270.0,4.774e-05]
[1756465344587,0.18142235,110240.0,110230.0,0.32504851]
[1756465344791,0.24317355,110240.0,110230.0,0.32734286]
[1756465345409,0.20686712,110240.0,110230.0,0.32734286]
[1756465345632,0.55520575,110240.0,110230.0,0.00014324]
[1756465346639,0.55520575,110240.0,110230.0,0.00214324]
[1756465347294,0.5552025,110240.0,110230.0,0.00214324]
[1756465350769,0.5532225,110240.0,110230.0,0.00751324]
[1756465350905,0.55515662,110240.0,110230.0,0.00751324]
[1756465351103,0.63023276,110240.0,110230.0,0.00751324]
[1756465352534,0.63019008,110240.0,110230.0,0.00751324]
[1756465352826,0.27686967,110240.0,110230.0,0.18895204]
[1756465353049,0.02537118,110240.0,110230.0,0.18895204]
[1756465356541,0.18140589,110250.0,110240.0,0.18142235]